fUSD/lending_fUSD_20260505
["ID","MTS","AMOUNT","RATE_DAILY","PERIOD"]
[421605417,1777944644000,-150.0,0.00038195,7]
[421605416,1777944644000,-150.0,0.00038195,7]
[421605415,1777944644000,-150.0,0.00038195,30]
[421605413,1777944644000,-518.0,0.0003771,13]
[421605430,1777944644000,-2000.0,0.00039995,2]
[421605420,1777944644000,-150.0,0.00038195,7]
[421605419,1777944644000,-150.0,0.00038195,7]
[421605424,1777944644000,-150.0,0.00039043,7]
[421605425,1777944644000,-6373.5014612,0.0003938,2]
[421605422,1777944644000,-150.0,0.00038195,7]
[421605423,1777944644000,-150.0,0.00038195,7]
[421605421,1777944644000,-150.0,0.00038195,7]
[421605429,1777944644000,-150.0,0.00039892,7]
[421605428,1777944644000,-145286.92748757,0.0003982,2]
[421605426,1777944644000,-366.45,0.000395,120]
[421605427,1777944644000,-150.0,0.00039579,2]
[421605431,1777944644000,-151.0,0.0004,120]
[421605433,1777944644000,-245.38,0.0004,120]
[421605438,1777944644000,-163.37767276,0.0004,120]
[421605440,1777944644000,-196.35864831,0.00040242,120]
[421605441,1777944644000,-150.0,0.00040316,7]
[421605434,1777944644000,-457.85,0.0004,120]
[421605439,1777944644000,-16868.4732,0.00040001,30]
[421605484,1777944644000,-1322.91,0.00042438,7]
[421605478,1777944644000,-500.0,0.00042438,7]
[421605474,1777944644000,-253.12966032,0.00042438,7]
[421605504,1777944644000,-171.60390836,0.00042438,7]
[421605505,1777944644000,-196.85632739,0.00042438,7]
[421605514,1777944644000,-326.91345159,0.00042438,7]
[421605513,1777944644000,-239.34278802,0.00042438,7]
[421605523,1777944644000,-150.0,0.00042438,30]
[421605512,1777944644000,-307.58004059,0.00042438,7]
[421605515,1777944644000,-577.15524539,0.00042438,7]
[421605516,1777944644000,-248.05640976,0.00042438,7]
[421605518,1777944644000,-589.90529621,0.00042438,7]
[421605520,1777944644000,-222.49781963,0.00042438,7]
[421605517,1777944644000,-290.74672226,0.00042438,7]
[421605522,1777944644000,-150.0,0.00042438,30]
[421605519,1777944644000,-154.28726357,0.00042438,7]
[421605524,1777944644000,-150.00000001,0.00042438,30]
[421605521,1777944644000,-157.64559806,0.00042438,7]
[421605525,1777944644000,-207.39946155,0.00042438,30]
[421605536,1777944644000,-500.0,0.0004244,7]
[421605531,1777944644000,-464.32951768,0.00042439,7]
[421605537,1777944644000,-500.0,0.0004244,7]
[421605526,1777944644000,-150.0,0.00042438,30]
[421605538,1777944644000,-500.0,0.0004244,7]
[421605527,1777944644000,-500.0,0.00042439,7]
[421605530,1777944644000,-500.0,0.00042439,7]
[421605529,1777944644000,-500.0,0.00042439,7]
[421605534,1777944644000,-500.0,0.0004244,7]
[421605533,1777944644000,-500.0,0.0004244,7]
[421605528,1777944644000,-500.0,0.00042439,7]
[421605532,1777944644000,-500.0,0.0004244,7]
[421605472,1777944644000,-263.28510539,0.00042437,7]
[421605501,1777944644000,-500.0,0.00042438,7]
[421605502,1777944644000,-500.0,0.00042438,7]
[421605535,1777944644000,-500.0,0.0004244,7]
[421605508,1777944644000,-500.0,0.00042438,7]
[421605475,1777944644000,-246.87033968,0.00042438,7]
[421605476,1777944644000,-500.0,0.00042438,7]
[421605539,1777944644000,-213.78907905,0.0004244,7]
[421605477,1777944644000,-500.0,0.00042438,7]
[421605479,1777944644000,-500.0,0.00042438,7]
[421605480,1777944644000,-1036.16,0.00042438,7]
[421605481,1777944644000,-1036.16,0.00042438,7]
[421605486,1777944644000,-1322.91,0.00042438,7]
[421605487,1777944644000,-1322.91,0.00042438,7]
[421605496,1777944644000,-500.0,0.00042438,7]
[421605497,1777944644000,-500.0,0.00042438,7]
[421605485,1777944644000,-1322.91,0.00042438,7]
[421605488,1777944644000,-500.0,0.00042438,2]
[421605494,1777944644000,-500.0,0.00042438,7]
[421605482,1777944644000,-1036.16,0.00042438,7]
[421605491,1777944644000,-500.0,0.00042438,7]
[421605490,1777944644000,-592.33597651,0.00042438,7]
[421605503,1777944644000,-500.0,0.00042438,7]
[421605507,1777944644000,-353.3124971,0.00042438,7]
[421605500,1777944644000,-500.0,0.00042438,7]
[421605498,1777944644000,-500.0,0.00042438,7]
[421605509,1777944644000,-500.0,0.00042438,7]
[421605510,1777944644000,-500.0,0.00042438,7]
[421605506,1777944644000,-208.11425218,0.00042438,7]
[421605499,1777944644000,-480.40094051,0.00042438,7]
[421605493,1777944644000,-500.0,0.00042438,7]
[421605489,1777944644000,-305.48,0.00042438,2]
[421605492,1777944644000,-500.0,0.00042438,7]
[421605495,1777944644000,-500.0,0.00042438,7]
[421605511,1777944644000,-500.0,0.00042438,7]
[421605544,1777944645000,-500.0,0.0004244,7]
[421605540,1777944645000,-500.0,0.0004244,7]
[421605550,1777944645000,-618.12899487,0.0004244,7]
[421605541,1777944645000,-500.0,0.0004244,7]
[421605542,1777944645000,-500.0,0.0004244,7]
[421605549,1777944645000,-1036.16,0.0004244,7]
[421605545,1777944645000,-500.0,0.0004244,7]
[421605546,1777944645000,-500.0,0.0004244,7]
[421605547,1777944645000,-500.0,0.0004244,7]
[421605548,1777944645000,-507.29449798,0.0004244,7]
[421605543,1777944645000,-500.0,0.0004244,7]
[421605553,1777944646000,-173.73,0.00030551,2]
[421605554,1777944646000,-173.73,0.00030993,7]
[421605552,1777944646000,-173.73,0.00024658,2]
[421605555,1777944646000,-173.74,0.00036209,7]
[421605557,1777944646000,-240.76387732,0.00041209,70]
[421605556,1777944646000,-173.75,0.00037329,30]
[421605559,1777944646000,-3953.30430625,0.00042,120]
[421605558,1777944646000,-174.08643028,0.00042,30]
[421605578,1777944647000,-1036.16,0.0004244,7]
[421605581,1777944647000,-1036.27506699,0.0004244,7]
[421605583,1777944647000,-1322.91,0.0004244,7]
[421605582,1777944647000,-162.48539177,0.0004244,7]
[421605588,1777944647000,-507.0,0.0004244,60]
[421605591,1777944647000,-150.0,0.0004244,120]
[421605594,1777944647000,-265.354305,0.00042441,120]
[421605596,1777944647000,-1287.420866,0.00042441,120]
[421605587,1777944647000,-469.0,0.0004244,60]
[421605590,1777944647000,-151.0,0.0004244,30]
[421605592,1777944647000,-300.0,0.0004244,30]
[421605586,1777944647000,-500.0,0.0004244,7]
[421605595,1777944647000,-1287.420866,0.00042441,120]
[421605589,1777944647000,-232.0,0.0004244,60]
[421605597,1777944647000,-1287.420866,0.00042441,120]
[421605599,1777944647000,-1287.420866,0.00042441,120]
[421605601,1777944647000,-1287.420866,0.00042441,120]
[421605608,1777944647000,-1287.420866,0.00042441,120]
[421605593,1777944647000,-151.0,0.00042441,120]
[421605575,1777944647000,-1036.16,0.0004244,7]
[421605576,1777944647000,-1036.16,0.0004244,7]
[421605579,1777944647000,-1036.16,0.0004244,7]
[421605598,1777944647000,-1287.420866,0.00042441,120]
[421605560,1777944647000,-180.8023758,0.00042438,30]
[421605561,1777944647000,-180.27648377,0.00042438,7]
[421605563,1777944647000,-832.35399917,0.0004244,7]
[421605562,1777944647000,-418.03100513,0.0004244,7]
[421605571,1777944647000,-1036.16,0.0004244,7]
[421605566,1777944647000,-1036.16,0.0004244,7]
[421605565,1777944647000,-1036.16,0.0004244,7]
[421605577,1777944647000,-1036.16,0.0004244,7]
[421605572,1777944647000,-1036.16,0.0004244,7]
[421605569,1777944647000,-1036.16,0.0004244,7]
[421605567,1777944647000,-1036.16,0.0004244,7]
[421605570,1777944647000,-1036.16,0.0004244,7]
[421605584,1777944647000,-500.0,0.0004244,7]
[421605574,1777944647000,-1036.16,0.0004244,7]
[421605573,1777944647000,-1036.16,0.0004244,7]
[421605585,1777944647000,-500.0,0.0004244,7]
[421605580,1777944647000,-1036.16,0.0004244,7]
[421605568,1777944647000,-1036.16,0.0004244,7]
[421605606,1777944647000,-1287.420866,0.00042441,120]
[421605564,1777944647000,-203.80600083,0.0004244,7]
[421605607,1777944647000,-1287.420866,0.00042441,120]
[421605626,1777944647000,-1322.91,0.00042441,7]
[421605628,1777944647000,-1322.91,0.00042441,7]
[421605629,1777944647000,-1322.91,0.00042441,7]
[421605632,1777944647000,-1322.91,0.00042441,7]
[421605631,1777944647000,-1322.91,0.00042441,7]
[421605630,1777944647000,-1322.91,0.00042441,7]
[421605636,1777944647000,-500.0,0.00042441,7]
[421605639,1777944647000,-500.0,0.00042441,7]
[421605634,1777944647000,-162.48539177,0.00042441,7]
[421605635,1777944647000,-500.0,0.00042441,7]
[421605638,1777944647000,-500.0,0.00042441,7]
[421605648,1777944647000,-38041.80763883,0.00042441,30]
[421605645,1777944647000,-323.85986342,0.00042441,7]
[421605643,1777944647000,-500.0,0.00042441,7]
[421605646,1777944647000,-500.0,0.00042441,7]
[421605640,1777944647000,-500.0,0.00042441,7]
[421605647,1777944647000,-191.66210755,0.00042441,7]
[421605642,1777944647000,-500.0,0.00042441,7]
[421605637,1777944647000,-500.0,0.00042441,7]
[421605624,1777944647000,-1322.91,0.00042441,7]
[421605627,1777944647000,-1322.91,0.00042441,7]
[421605633,1777944647000,-1323.05889804,0.00042441,7]
[421605602,1777944647000,-1287.420866,0.00042441,120]
[421605604,1777944647000,-1287.420866,0.00042441,120]
[421605605,1777944647000,-1287.420866,0.00042441,120]
[421605603,1777944647000,-1287.420866,0.00042441,120]
[421605609,1777944647000,-1287.420866,0.00042441,120]
[421605611,1777944647000,-1287.420866,0.00042441,120]
[421605614,1777944647000,-1287.420875,0.00042441,120]
[421605625,1777944647000,-1322.91,0.00042441,7]
[421605612,1777944647000,-1287.420866,0.00042441,120]
[421605613,1777944647000,-1287.420866,0.00042441,120]
[421605615,1777944647000,-1322.91,0.00042441,7]
[421605618,1777944647000,-1322.91,0.00042441,7]
[421605619,1777944647000,-1322.91,0.00042441,7]
[421605617,1777944647000,-1322.91,0.00042441,7]
[421605620,1777944647000,-1322.91,0.00042441,7]
[421605621,1777944647000,-1322.91,0.00042441,7]
[421605616,1777944647000,-1322.91,0.00042441,7]
[421605622,1777944647000,-1322.91,0.00042441,7]
[421605623,1777944647000,-1322.91,0.00042441,7]
[421605610,1777944647000,-1287.420866,0.00042441,120]
[421605600,1777944647000,-1287.420866,0.00042441,120]
[421605651,1777944661000,237.64508903,0.00022603,120]
[421605650,1777944661000,2500.0,0.00024068,120]
[421605649,1777944661000,2500.0,0.00022603,120]
[421605652,1777944662000,178.63058006,0.0003,120]
[421605657,1777945607000,-184.01307111,0.000176,2]
[421605658,1777945647000,569.0,0.0003,120]
[421605659,1777945668000,300.0,0.0003,120]
[421605693,1777945771000,-524.0,0.00027137,2]
[421605673,1777945771000,-151.0,0.00019016,2]
[421605672,1777945771000,-151.0,0.00019016,2]
[421605674,1777945771000,-151.0,0.00019016,2]
[421605670,1777945771000,-151.0,0.00019016,2]
[421605668,1777945771000,-151.0,0.00019016,2]
[421605675,1777945771000,-151.0,0.00019016,2]
[421605666,1777945771000,-300.0,0.000187,2]
[421605667,1777945771000,-852.0,0.00019015,2]
[421605662,1777945771000,-300.0,0.00017816,2]
[421605665,1777945771000,-300.0,0.000187,2]
[421605664,1777945771000,-300.0,0.000187,2]
[421605663,1777945771000,-404.0,0.00018032,2]
[421605661,1777945771000,-17.84692889,0.000176,2]
[421605669,1777945771000,-151.0,0.00019016,2]
[421605680,1777945771000,-151.0,0.00019016,2]
[421605671,1777945771000,-151.0,0.00019016,2]
[421605677,1777945771000,-151.0,0.00019016,2]
[421605694,1777945771000,-4242.81652292,0.00027488,2]
[421605676,1777945771000,-151.0,0.00019016,2]
[421605691,1777945771000,-162.48539177,0.00020537,2]
[421605688,1777945771000,-300.0,0.0001936,2]
[421605689,1777945771000,-250.0,0.0001936,2]
[421605687,1777945771000,-154.19379154,0.00019016,2]
[421605690,1777945771000,-253.80736015,0.00019835,2]
[421605692,1777945771000,-752.83,0.00020548,2]
[421605685,1777945771000,-151.0,0.00019016,2]
[421605686,1777945771000,-151.0,0.00019016,2]
[421605683,1777945771000,-151.0,0.00019016,2]
[421605682,1777945771000,-151.0,0.00019016,2]
[421605681,1777945771000,-151.0,0.00019016,2]
[421605678,1777945771000,-151.0,0.00019016,2]
[421605679,1777945771000,-151.0,0.00019016,2]
[421605684,1777945771000,-151.0,0.00019016,2]
[421605708,1777945831000,-177.21426637,0.00027478,2]
[421605709,1777945831000,-963.42191173,0.00027488,2]
[421605710,1777945831000,-500.0,0.00027487,2]
[421605711,1777945831000,-323.641,0.00027488,2]
[421605713,1777945831000,-500.0,0.00027487,2]
[421605712,1777945831000,-500.0,0.00027487,2]
[421605715,1777945831000,-391.24125144,0.00027487,2]
[421605716,1777945831000,-7166.80668741,0.00027488,2]
[421605714,1777945831000,-510708.47889886,0.00027488,2]
[421605740,1777945839000,-1933.47872742,0.00027488,2]
[421605742,1777945840000,-545.85460464,0.00027488,2]
[421605747,1777945840000,-1466.25518156,0.00027488,2]
[421605741,1777945840000,-2935.0,0.00027488,2]
[421605749,1777945840000,-4047.10346387,0.00027488,2]
[421605750,1777945840000,-4730.75089867,0.00027488,2]
[421605748,1777945840000,-337.52752473,0.00027488,2]
[421605813,1777945842000,-1250.10506771,0.00027488,2]
[421605812,1777945842000,-35409.74475922,0.00027488,2]
[421605811,1777945842000,-4069.77402337,0.00027488,2]
[421605809,1777945842000,-400752.61888978,0.00027488,2]
[421605810,1777945842000,-259220.78818044,0.00027488,2]
[421605808,1777945842000,-3108.67022078,0.00027488,2]
[421605807,1777945842000,-519.45202042,0.00027488,2]
[421605806,1777945842000,-5315.1,0.00027488,2]
[421605805,1777945842000,-681.76212011,0.00027488,2]
[421605814,1777945843000,-413.91309335,0.00027488,2]
[421605815,1777945843000,-261.98000005,0.00027488,2]
[421605817,1777945843000,-388.81814311,0.00027488,2]
[421605816,1777945843000,-1203.55824115,0.00027488,2]
[421605818,1777945843000,-5733.99841523,0.00027488,2]
[421605835,1777945845000,-60344.7451,0.00027488,2]
[421605833,1777945845000,-164937.23495501,0.00027488,2]
[421605830,1777945845000,-218.15,0.00024658,2]
[421605832,1777945845000,-54606.44168079,0.00027488,2]
[421605834,1777945845000,-22209.92400421,0.00027488,2]
[421605836,1777945845000,-951.24473972,0.00027488,2]
[421605840,1777945845000,-1000.0,0.00029433,2]
[421605831,1777945845000,-514.98076346,0.00027488,2]
[421605838,1777945845000,-951.24473971,0.0002914,2]
[421605839,1777945845000,-1000.0,0.00029433,2]
[421605842,1777945845000,-1000.0,0.00029433,2]
[421605844,1777945845000,-1000.0,0.00029433,2]
[421605843,1777945845000,-1000.0,0.00029433,2]
[421605846,1777945845000,-944.02697925,0.00030237,120]
[421605841,1777945845000,-1000.0,0.00029433,2]
[421605837,1777945845000,-4840.11,0.000275,7]
[421605845,1777945845000,-187.80309625,0.00029433,2]
[421605901,1777945846000,-3160.84,0.00040111,2]
[421605900,1777945846000,-158.69,0.00040018,120]
[421605899,1777945846000,-153.0,0.0004,120]
[421605898,1777945846000,-154.0,0.0004,120]
[421605889,1777945846000,-229.492311,0.000399,120]
[421605884,1777945846000,-780.57,0.0003956,10]
[421605885,1777945846000,-5000.0,0.0003957,120]
[421605882,1777945846000,-3160.84,0.00039133,2]
[421605883,1777945846000,-150.0,0.00039255,7]
[421605886,1777945846000,-150.0,0.00039609,7]
[421605881,1777945846000,-150.0,0.00038902,7]
[421605880,1777945846000,-4840.11,0.000386,7]
[421605890,1777945846000,-402.58208229,0.000399,15]
[421605894,1777945846000,-160.2653827,0.0004,120]
[421605895,1777945846000,-20795.81737929,0.0004,120]
[421605892,1777945846000,-150.0,0.00039963,7]
[421605887,1777945846000,-158.69,0.00039718,120]
[421605904,1777945846000,-158.69,0.00040218,120]
[421605911,1777945846000,-150.0,0.0004067,7]
[421605910,1777945846000,-204.55367698,0.0004065,120]
[421605907,1777945846000,-158.74052115,0.00040318,120]
[421605914,1777945846000,-5079.70166936,0.00040876,120]
[421605891,1777945846000,-158.69,0.00039918,120]
[421605903,1777945846000,-402.58208225,0.00040173,15]
[421605913,1777945846000,-402.58208225,0.00040719,15]
[421605912,1777945846000,-153.0,0.000407,120]
[421605902,1777945846000,-158.69,0.00040118,120]
[421605896,1777945846000,-226.44822888,0.0004,30]
[421605893,1777945846000,-5209.36751901,0.0003998,120]
[421605897,1777945846000,-520.85342924,0.0004,30]
[421605915,1777945846000,-200.0,0.000409,14]
[421605879,1777945846000,-150.0,0.00038548,7]
[421605873,1777945846000,-152.49588795,0.00038195,7]
[421605875,1777945846000,-188.61510332,0.00038195,7]
[421605905,1777945846000,-150.0,0.00040316,7]
[421605847,1777945846000,-951.24473971,0.00030792,2]
[421605849,1777945846000,-951.24473971,0.00032445,2]
[421605852,1777945846000,-471.0,0.00032818,30]
[421605850,1777945846000,-3770.8126,0.00032795,10]
[421605851,1777945846000,-254.0,0.00032818,30]
[421605848,1777945846000,-290.86,0.00031853,2]
[421605855,1777945846000,-524.0,0.00034689,10]
[421605857,1777945846000,-1732.68,0.00034801,15]
[421605856,1777945846000,-227.99060581,0.00034801,40]
[421605859,1777945846000,-586.2,0.00035,10]
[421605854,1777945846000,-951.24473971,0.00034097,2]
[421605860,1777945846000,-159.0,0.00035616,10]
[421605853,1777945846000,-169.74584628,0.00033,30]
[421605858,1777945846000,-205.77432878,0.00035,90]
[421605861,1777945846000,-951.24473971,0.00035749,2]
[421605866,1777945846000,-184.94875797,0.000372,120]
[421605878,1777945846000,-163.31800996,0.00038356,120]
[421605877,1777945846000,-150.0,0.00038195,7]
[421605876,1777945846000,-150.0,0.00038195,7]
[421605868,1777945846000,-951.24473971,0.00037401,2]
[421605869,1777945846000,-218.15,0.00038044,7]
[421605870,1777945846000,-187.0,0.00038044,2]
[421605888,1777945846000,-158.69,0.00039818,120]
[421605871,1777945846000,-155.76956085,0.00038195,30]
[421605867,1777945846000,-1000.0,0.00037321,2]
[421605864,1777945846000,-251.33967816,0.00037194,2]
[421605874,1777945846000,-234.26597094,0.00038195,7]
[421605865,1777945846000,-1004.35335391,0.00037194,2]
[421605863,1777945846000,-1388.49,0.000371,2]
[421605862,1777945846000,-170.57,0.00037071,30]
[421605872,1777945846000,-150.0,0.00038195,7]
[421605908,1777945846000,-402.58208225,0.00040446,15]
[421605938,1777945846000,-402.58208225,0.00041266,15]
[421605909,1777945846000,-1842.81860641,0.000405,30]
[421605960,1777945846000,-916.74768725,0.00042,120]
[421605954,1777945846000,-583.2854129,0.00041753,15]
[421605958,1777945846000,-224.56818841,0.000419,120]
[421605961,1777945846000,-1245.20298042,0.00042,120]
[421605957,1777945846000,-402.58208225,0.00041812,15]
[421605959,1777945846000,-203.72,0.00041921,2]
[421605969,1777945846000,-150.0,0.00042085,30]
[421605970,1777945846000,-402.58208225,0.00042085,15]
[421605972,1777945846000,-153.0,0.000421,120]
[421605962,1777945846000,-410.49051781,0.00042,120]
[421605971,1777945846000,-154.0,0.000421,120]
[421605973,1777945846000,-5000.0,0.00042166,15]
[421605974,1777945846000,-10000.0,0.00042166,15]
[421605967,1777945846000,-350.0,0.0004201,9]
[421605956,1777945846000,-793.0,0.000418,15]
[421605964,1777945846000,-970.35905562,0.00042,120]
[421605968,1777945846000,-3160.84,0.00042067,2]
[421605975,1777945846000,-339.8596,0.000422,120]
[421605966,1777945846000,-151.94231794,0.00042,120]
[421605977,1777945846000,-216.61685997,0.000422,7]
[421605983,1777945846000,-10000.0,0.0004234,2]
[421605982,1777945846000,-5639.41404561,0.0004234,2]
[421605984,1777945846000,-5000.0,0.00042358,120]
[421605985,1777945846000,-169.46,0.00042358,120]
[421605986,1777945846000,-402.58208225,0.00042358,15]
[421605976,1777945846000,-213.36579171,0.000422,120]
[421605980,1777945846000,-1225.70552732,0.00042258,30]
[421605978,1777945846000,-175.44509411,0.000422,120]
[421605979,1777945846000,-524.0,0.00042241,18]
[421605906,1777945846000,-150.0,0.00040316,7]
[421605965,1777945846000,-160.89739131,0.00042,30]
[421605952,1777945846000,-150.0,0.00041731,30]
[421605963,1777945846000,-454.23109767,0.00042,120]
[421605953,1777945846000,-1388.49,0.00041738,120]
[421605922,1777945846000,-150.0,0.00041024,7]
[421605927,1777945846000,-2500.0,0.00041108,2]
[421605924,1777945846000,-151.84611894,0.00041095,120]
[421605920,1777945846000,-500.0,0.00041,14]
[421605919,1777945846000,-402.58208225,0.00040992,15]
[421605929,1777945846000,-1000.0,0.000412,15]
[421605933,1777945846000,-2500.0,0.000412,120]
[421605926,1777945846000,-4840.11,0.000411,7]
[421605923,1777945846000,-3160.84,0.00041089,2]
[421605931,1777945846000,-1000.0,0.000412,120]
[421605917,1777945846000,-7565.0,0.0004095,60]
[421605918,1777945846000,-170.57,0.00040973,30]
[421605955,1777945846000,-560.0,0.000418,120]
[421605916,1777945846000,-1080.3372,0.00040903,30]
[421605921,1777945846000,-154.0,0.00041,120]
[421605943,1777945846000,-200.0,0.000414,15]
[421605925,1777945846000,-700.0,0.000411,15]
[421605950,1777945846000,-200.0,0.000416,15]
[421605949,1777945846000,-402.58208225,0.00041539,15]
[421605942,1777945846000,-150.0,0.00041377,30]
[421605951,1777945846000,-200.0,0.000417,15]
[421605948,1777945846000,-200.0,0.000415,15]
[421605981,1777945846000,-7565.0,0.000423,60]
[421605941,1777945846000,-2540.9744,0.00041338,30]
[421605936,1777945846000,-182.28309862,0.0004122,30]
[421605940,1777945846000,-1300.0,0.000413,15]
[421605932,1777945846000,-2500.0,0.000412,120]
[421605944,1777945846000,-153.0,0.000414,120]
[421605945,1777945846000,-354.49972223,0.00041469,5]
[421605935,1777945846000,-150.0,0.0004122,30]
[421605934,1777945846000,-202.38537196,0.00041208,70]
[421605947,1777945846000,-1000.0,0.000415,120]
[421606032,1777945847000,-618.83869395,0.00042438,7]
[421606044,1777945847000,-355.8006556,0.00042438,7]
[421606042,1777945847000,-1000.0,0.00042438,2]
[421606031,1777945847000,-207.89491107,0.00042438,7]
[421606041,1777945847000,-172.41067867,0.00042438,7]
[421606030,1777945847000,-342.13359289,0.00042438,7]
[421606019,1777945847000,-500.0,0.00042438,7]
[421606029,1777945847000,-500.0,0.00042438,7]
[421606025,1777945847000,-155.7316158,0.00042438,7]
[421606027,1777945847000,-668.55,0.00042438,7]
[421606021,1777945847000,-160.06897485,0.00042438,7]
[421606022,1777945847000,-500.0,0.00042438,7]
[421606043,1777945847000,-168.19811008,0.00042438,7]
[421606028,1777945847000,-500.0,0.00042438,2]
[421606037,1777945847000,-240.46054091,0.00042438,7]
[421606058,1777945847000,-539.90771362,0.00042438,7]
[421606035,1777945847000,-179.68912613,0.00042438,7]
[421606020,1777945847000,-500.0,0.00042438,7]
[421606051,1777945847000,-368.75968718,0.00042438,7]
[421606053,1777945847000,-261.41897462,0.00042438,7]
[421606057,1777945847000,-500.0,0.00042438,7]
[421606049,1777945847000,-197.3417341,0.00042438,7]
[421606048,1777945847000,-222.06621594,0.00042438,7]
[421606040,1777945847000,-244.8539022,0.00042438,7]
[421606045,1777945847000,-500.0,0.00042438,7]
[421606056,1777945847000,-221.48531804,0.00042438,7]
[421606038,1777945847000,-244.62579028,0.00042438,7]
[421606039,1777945847000,-233.45160459,0.00042438,7]
[421606036,1777945847000,-317.51614283,0.00042438,7]
[421606033,1777945847000,-576.69807972,0.00042438,7]
[421606034,1777945847000,-155.11151233,0.00042438,7]
[421606046,1777945847000,-523.38017319,0.00042438,7]
[421606024,1777945847000,-155.75157413,0.00042438,7]
[421605988,1777945847000,-764.33327144,0.00042358,2]
[421606026,1777945847000,-367.24881909,0.00042438,7]
[421605987,1777945847000,-217.61645619,0.00042358,2]
[421605990,1777945847000,-184.94875797,0.00042358,120]
[421605998,1777945847000,-500.0,0.00042438,7]
[421605999,1777945847000,-500.0,0.00042438,7]
[421605989,1777945847000,-2786.4451288,0.00042358,2]
[421606000,1777945847000,-500.0,0.00042438,7]
[421605991,1777945847000,-8133.64678533,0.00042358,2]
[421605992,1777945847000,-162.48539177,0.00042438,7]
[421606001,1777945847000,-434.82011047,0.00042438,7]
[421606002,1777945847000,-500.0,0.00042438,7]
[421605993,1777945847000,-1000.92996559,0.00042438,2]
[421605994,1777945847000,-171.20781234,0.00042438,7]
[421605995,1777945847000,-500.0,0.00042438,7]
[421605996,1777945847000,-500.0,0.00042438,7]
[421605997,1777945847000,-500.0,0.00042438,7]
[421606003,1777945847000,-500.0,0.00042438,7]
[421606005,1777945847000,-510.78024804,0.00042438,7]
[421606017,1777945847000,-500.0,0.00042438,7]
[421606018,1777945847000,-500.0,0.00042438,7]
[421606011,1777945847000,-167.0985939,0.00042438,7]
[421606014,1777945847000,-500.0,0.00042438,7]
[421606015,1777945847000,-500.0,0.00042438,7]
[421606016,1777945847000,-500.0,0.00042438,7]
[421606023,1777945847000,-157.70219365,0.00042438,7]
[421606006,1777945847000,-154.37256662,0.00042438,7]
[421606007,1777945847000,-164.06818036,0.00042438,7]
[421606012,1777945847000,-164.39006576,0.00042438,7]
[421606013,1777945847000,-157.60975315,0.00042438,7]
[421606009,1777945847000,-161.17955705,0.00042438,7]
[421606010,1777945847000,-155.73416036,0.00042438,7]
[421606004,1777945847000,-500.0,0.00042438,7]
[421606008,1777945847000,-163.72284765,0.00042438,7]
[421606054,1777945847000,-304.03577131,0.00042438,7]
[421606047,1777945847000,-159.77866097,0.00042438,7]
[421606052,1777945847000,-252.55212275,0.00042438,7]
[421606090,1777945847000,-259.66394007,0.00042438,7]
[421606092,1777945847000,-500.0,0.00042438,7]
[421606093,1777945847000,-500.0,0.00042438,7]
[421606088,1777945847000,-599.15944529,0.00042438,7]
[421606096,1777945847000,-337.50012413,0.00042438,7]
[421606094,1777945847000,-574.0917054,0.00042438,7]
[421606095,1777945847000,-290.4125261,0.00042438,7]
[421606100,1777945847000,-369.48885031,0.00042438,7]
[421606104,1777945847000,-643.98570214,0.00042438,7]
[421606109,1777945847000,-354.12774735,0.00042438,7]
[421606102,1777945847000,-195.16095091,0.00042438,7]
[421606101,1777945847000,-157.1831583,0.00042438,7]